[Event "GrandPrix_29.05"]
[Site "Chess.com"]
[Date "2020.05.29"]
[Round "1"]
[White "SoltaniciR"]
[Black "SpasKozhuharov"]
[Result "0-1"]
[WhiteElo "1989"]
[BlackElo "2093"]
[TimeControl "600+2"]
[EndTime "9:23:00 PDT"]
[Termination "SpasKozhuharov won on time"]

1. e4 {[%clk 0:10:00.8]} 1... c6 {[%clk 0:09:59.2]} 2. c4 {[%clk 0:09:58.1]}
2... d5 {[%clk 0:09:57.9]} 3. exd5 {[%clk 0:09:58.5]} 3... cxd5 {[%clk
0:09:58.2]} 4. cxd5 {[%clk 0:09:59.3]} 4... Nf6 {[%clk 0:09:58.9]} 5. Qa4+
{[%clk 0:09:59.1]} 5... Nbd7 {[%clk 0:09:58.9]} 6. Nc3 {[%clk 0:09:59.3]} 6...
g6 {[%clk 0:09:57.9]} 7. Nf3 {[%clk 0:10:00.1]} 7... Bg7 {[%clk 0:09:59.3]} 8.
Bc4 {[%clk 0:10:01]} 8... O-O {[%clk 0:10:01.2]} 9. d3 {[%clk 0:10:01.5]} 9...
a6 {[%clk 0:10:02.6]} 10. Qa3 {[%clk 0:10:02.4]} 10... b6 {[%clk 0:10:04]} 11.
O-O {[%clk 0:10:02.5]} 11... Bb7 {[%clk 0:10:05.5]} 12. Re1 {[%clk 0:10:03.4]}
12... b5 {[%clk 0:10:07]} 13. Bb3 {[%clk 0:10:00.8]} 13... Re8 {[%clk
0:10:08.4]} 14. Ng5 {[%clk 0:09:19.9]} 14... Rc8 {[%clk 0:10:06]} 15. d6 {[%clk
0:09:05.2]} 15... e6 {[%clk 0:10:05]} 16. Nge4 {[%clk 0:09:05.6]} 16... Nd5
{[%clk 0:08:46.4]} 17. Nxd5 {[%clk 0:07:42.6]} 17... exd5 {[%clk 0:08:34.5]} 18.
Bg5 {[%clk 0:07:40.7]} 18... Qb6 {[%clk 0:08:24.2]} 19. Be3 {[%clk 0:07:09.6]}
19... Bd4 {[%clk 0:07:50]} 20. Bxd4 {[%clk 0:05:36.5]} 20... Qxd4 {[%clk
0:07:51.9]} 21. Nd2 {[%clk 0:03:23.4]} 21... Rxe1+ {[%clk 0:04:58.8]} 22. Rxe1
{[%clk 0:03:21.8]} 22... Nc5 {[%clk 0:05:00.7]} 23. Nf3 {[%clk 0:02:02.9]} 23...
Qf6 {[%clk 0:04:41.3]} 24. Rc1 {[%clk 0:01:20.4]} 24... Qxd6 {[%clk 0:01:51.7]}
25. d4 {[%clk 0:01:19.4]} 25... Qf4 {[%clk 0:01:34.6]} 26. Rd1 {[%clk
0:00:55.6]} 26... Ne4 {[%clk 0:01:25.5]} 27. Qe7 {[%clk 0:00:45.5]} 27... Rc1
{[%clk 0:01:03]} 28. Qe8+ {[%clk 0:00:15.5]} 28... Kg7 {[%clk 0:01:01.6]} 29.
Qe5+ {[%clk 0:00:16.8]} 29... Qxe5 {[%clk 0:01:01]} 30. Nxe5 {[%clk 0:00:15.3]}
30... Rc7 {[%clk 0:00:57.8]} 31. Nd3 {[%clk 0:00:10.5]} 31... Nd6 {[%clk
0:00:57.5]} 32. Nc5 {[%clk 0:00:06.5]} 32... Nc4 {[%clk 0:00:58.3]} 33. Bxc4
{[%clk 0:00:04.3]} 33... dxc4 {[%clk 0:00:59.1]} 34. Nxb7 {[%clk 0:00:05.2]}
34... Rxb7 {[%clk 0:00:59.9]} 35. f3 {[%clk 0:00:06.2]} 35... Kf6 {[%clk
0:01:00.7]} 36. Kf2 {[%clk 0:00:07.6]} 36... Ke6 {[%clk 0:01:00]} 37. d5+ {[%clk
0:00:05.2]} 37... Kd6 {[%clk 0:01:00.9]} 38. Ke3 {[%clk 0:00:06]} 38... Re7+
{[%clk 0:01:01.2]} 39. Kf2 {[%clk 0:00:04.3]} 39... Re5 {[%clk 0:01:00.1]} 40.
h4 {[%clk 0:00:03.8]} 40... Rxd5 {[%clk 0:01:00.1]} 0-1

[Event "GrandPrix_29.05"]
[Site "Chess.com"]
[Date "2020.05.29"]
[Round "1"]
[White "nurgyulsalimova"]
[Black "troisi"]
[Result "1/2-1/2"]
[WhiteElo "2231"]
[BlackElo "1489"]
[TimeControl "600+2"]
[EndTime "9:23:02 PDT"]
[Termination "Game drawn by repetition"]

1. d4 {[%clk 0:09:56.7]} 1... Nf6 {[%clk 0:09:57.6]} 2. Nf3 {[%clk 0:09:54.7]}
2... e6 {[%clk 0:09:50.5]} 3. g3 {[%clk 0:09:55.3]} 3... c5 {[%clk 0:09:45.8]}
4. Bg2 {[%clk 0:09:55.9]} 4... Nc6 {[%clk 0:09:43.3]} 5. O-O {[%clk 0:09:56.1]}
5... d5 {[%clk 0:09:43.6]} 6. c4 {[%clk 0:09:39.9]} 6... dxc4 {[%clk 0:08:28.9]}
7. dxc5 {[%clk 0:09:20.5]} 7... Qxd1 {[%clk 0:08:11.6]} 8. Rxd1 {[%clk
0:09:22.4]} 8... Bxc5 {[%clk 0:08:12.6]} 9. Nbd2 {[%clk 0:09:20.3]} 9... c3
{[%clk 0:07:38]} 10. bxc3 {[%clk 0:09:20.1]} 10... O-O {[%clk 0:07:25.5]} 11.
Nb3 {[%clk 0:09:20.7]} 11... Be7 {[%clk 0:07:16.9]} 12. c4 {[%clk 0:09:20.4]}
12... Bd7 {[%clk 0:06:38.3]} 13. Bb2 {[%clk 0:09:20.5]} 13... Rad8 {[%clk
0:06:38.3]} 14. Nfd4 {[%clk 0:09:07.8]} 14... Nxd4 {[%clk 0:06:34.3]} 15. Nxd4
{[%clk 0:08:55.7]} 15... Rc8 {[%clk 0:06:22.8]} 16. Rac1 {[%clk 0:08:51.8]}
16... Bc5 {[%clk 0:05:59.4]} 17. Nb3 {[%clk 0:08:42.3]} 17... Ba4 {[%clk
0:04:48.1]} 18. Rd3 {[%clk 0:08:22]} 18... Bxb3 {[%clk 0:04:34.3]} 19. axb3
{[%clk 0:08:15.5]} 19... b6 {[%clk 0:03:13.3]} 20. Rcd1 {[%clk 0:08:13.7]} 20...
Be7 {[%clk 0:02:51.7]} 21. e4 {[%clk 0:07:48]} 21... Rfd8 {[%clk 0:02:39.3]} 22.
e5 {[%clk 0:07:43.7]} 22... Ne8 {[%clk 0:02:07.5]} 23. Rd7 {[%clk 0:07:20.4]}
23... a5 {[%clk 0:02:00.9]} 24. Bb7 {[%clk 0:05:46.2]} 24... Rb8 {[%clk
0:01:36.1]} 25. Bc6 {[%clk 0:05:25.2]} 25... Kf8 {[%clk 0:01:03.2]} 26. Kg2
{[%clk 0:04:55.8]} 26... Rxd7 {[%clk 0:00:47.3]} 27. Rxd7 {[%clk 0:04:55.6]}
27... Bc5 {[%clk 0:00:28.2]} 28. f4 {[%clk 0:04:41]} 28... Rc8 {[%clk
0:00:23.4]} 29. Be4 {[%clk 0:04:15.2]} 29... Rc7 {[%clk 0:00:15.9]} 30. Rd8
{[%clk 0:04:02.5]} 30... Ke7 {[%clk 0:00:14.7]} 31. Rd3 {[%clk 0:03:41.4]} 31...
h6 {[%clk 0:00:15.3]} 32. Kf3 {[%clk 0:03:35.8]} 32... Rd7 {[%clk 0:00:16.1]}
33. Rxd7+ {[%clk 0:03:22.4]} 33... Kxd7 {[%clk 0:00:18]} 34. g4 {[%clk
0:03:20.9]} 34... Nc7 {[%clk 0:00:16.6]} 35. h4 {[%clk 0:03:20.6]} 35... b5
{[%clk 0:00:17.6]} 36. cxb5 {[%clk 0:03:13.3]} 36... Nxb5 {[%clk 0:00:18.3]} 37.
Bd3 {[%clk 0:02:42.1]} 37... Nd4+ {[%clk 0:00:17.7]} 38. Bxd4 {[%clk 0:02:42.5]}
38... Bxd4 {[%clk 0:00:19.6]} 39. Ke4 {[%clk 0:02:41.3]} 39... Bf2 {[%clk
0:00:20.1]} 40. h5 {[%clk 0:02:40.8]} 40... Kc6 {[%clk 0:00:21.1]} 41. f5 {[%clk
0:02:29.4]} 41... Kd7 {[%clk 0:00:18.4]} 42. Bb5+ {[%clk 0:02:19.5]} 42... Ke7
{[%clk 0:00:18.2]} 43. Bc4 {[%clk 0:02:18.3]} 43... exf5+ {[%clk 0:00:17.5]} 44.
gxf5 {[%clk 0:02:15.6]} 44... Be1 {[%clk 0:00:19.4]} 45. e6 {[%clk 0:02:05.6]}
45... fxe6 {[%clk 0:00:19.5]} 46. fxe6 {[%clk 0:02:04.9]} 46... Kf6 {[%clk
0:00:19]} 47. Kd5 {[%clk 0:02:03.6]} 47... Bb4 {[%clk 0:00:19.2]} 48. Kc6 {[%clk
0:01:53.6]} 48... Kg5 {[%clk 0:00:17]} 49. Be2 {[%clk 0:01:42.3]} 49... Kf6
{[%clk 0:00:15.1]} 50. Kd7 {[%clk 0:01:41.4]} 50... Ba3 {[%clk 0:00:16]} 51. Bf3
{[%clk 0:01:38.9]} 51... Be7 {[%clk 0:00:16.3]} 52. Be2 {[%clk 0:01:38.9]} 52...
Bb4 {[%clk 0:00:17.3]} 53. Bf3 {[%clk 0:01:39.6]} 53... Be7 {[%clk 0:00:18.1]}
54. Be2 {[%clk 0:01:40.5]} 54... Bb4 {[%clk 0:00:20]} 55. Bf3 {[%clk 0:01:41.5]}
55... Be7 {[%clk 0:00:21.6]} 1/2-1/2

[Event "GrandPrix_29.05"]
[Site "Chess.com"]
[Date "2020.05.29"]
[Round "1"]
[White "bedgasm"]
[Black "Benjoneliere44"]
[Result "1-0"]
[WhiteElo "2258"]
[BlackElo "1395"]
[TimeControl "600+2"]
[EndTime "9:23:03 PDT"]
[Termination "bedgasm won by resignation"]

1. Nf3 {[%clk 0:09:59.4]} 1... Nf6 {[%clk 0:09:56.1]} 2. g3 {[%clk 0:10:00.1]}
2... c5 {[%clk 0:09:42.6]} 3. Bg2 {[%clk 0:09:57.1]} 3... g6 {[%clk 0:09:39]} 4.
O-O {[%clk 0:09:40.9]} 4... Bg7 {[%clk 0:09:38.1]} 5. b3 {[%clk 0:09:42]} 5...
O-O {[%clk 0:09:36.7]} 6. Bb2 {[%clk 0:09:41.7]} 6... Nc6 {[%clk 0:09:38]} 7. c4
{[%clk 0:09:40.4]} 7... b6 {[%clk 0:09:38.9]} 8. Ne5 {[%clk 0:09:34.8]} 8... Bb7
{[%clk 0:09:38.5]} 9. Nxc6 {[%clk 0:09:34.7]} 9... Bxc6 {[%clk 0:09:37]} 10.
Bxc6 {[%clk 0:09:34.9]} 10... dxc6 {[%clk 0:09:38.9]} 11. d3 {[%clk 0:09:33.4]}
11... h5 {[%clk 0:09:38.4]} 12. h3 {[%clk 0:08:27.1]} 12... Qd6 {[%clk
0:09:16.9]} 13. f4 {[%clk 0:07:31.7]} 13... Qe6 {[%clk 0:08:39]} 14. f5 {[%clk
0:05:58.1]} 14... Qe3+ {[%clk 0:08:35.1]} 15. Kg2 {[%clk 0:05:55.6]} 15... gxf5
{[%clk 0:06:11.2]} 16. Rxf5 {[%clk 0:05:30.5]} 16... Qe6 {[%clk 0:05:57.9]} 17.
Rg5 {[%clk 0:04:25]} 17... Rfd8 {[%clk 0:05:43.3]} 18. Nd2 {[%clk 0:03:56.6]}
18... Kf8 {[%clk 0:05:43.9]} 19. Ne4 {[%clk 0:03:45.5]} 19... Nxe4 {[%clk
0:05:29.4]} 20. Bxg7+ {[%clk 0:03:16.2]} 20... Ke8 {[%clk 0:05:29.1]} 21. Re5
{[%clk 0:03:11.9]} 21... Qg6 {[%clk 0:05:24.8]} 22. Rxe4 {[%clk 0:03:05]} 22...
Qxg7 {[%clk 0:05:25.8]} 23. Qf1 {[%clk 0:02:52]} 23... Rd6 {[%clk 0:05:25.4]}
24. Rd1 {[%clk 0:02:47.3]} 24... Rad8 {[%clk 0:04:11.3]} 25. Qf5 {[%clk
0:02:20.6]} 25... Rf6 {[%clk 0:03:33.5]} 26. Qxh5 {[%clk 0:02:03.1]} 26... e6
{[%clk 0:03:28.9]} 27. Rg4 {[%clk 0:01:59.3]} 27... Qf8 {[%clk 0:03:22.9]} 28.
Rf1 {[%clk 0:01:26]} 28... Rxf1 {[%clk 0:03:22.1]} 29. Kxf1 {[%clk 0:01:27.9]}
29... Kd7 {[%clk 0:03:11.5]} 30. Rf4 {[%clk 0:01:20.8]} 30... f5 {[%clk
0:03:06.6]} 31. Qh7+ {[%clk 0:01:18.6]} 31... Qe7 {[%clk 0:03:05.3]} 32. Qxe7+
{[%clk 0:01:18.9]} 32... Kxe7 {[%clk 0:03:07.2]} 33. Rh4 {[%clk 0:01:14.3]}
33... Rg8 {[%clk 0:02:48.7]} 34. Rh7+ {[%clk 0:01:12.8]} 34... Kd6 {[%clk
0:02:40.2]} 35. Kf2 {[%clk 0:01:13.6]} 35... a5 {[%clk 0:02:33.3]} 36. a4 {[%clk
0:01:11.6]} 36... Rb8 {[%clk 0:02:26.6]} 37. h4 {[%clk 0:01:08.9]} 37... Ke5
{[%clk 0:02:27.5]} 38. e3 {[%clk 0:01:05.3]} 38... b5 {[%clk 0:02:28.1]} 39. Rc7
{[%clk 0:01:00.3]} 39... bxa4 {[%clk 0:02:24.9]} 40. bxa4 {[%clk 0:00:59.7]}
40... Kd6 {[%clk 0:02:25.4]} 41. Ra7 {[%clk 0:00:58.5]} 41... Rb3 {[%clk
0:02:13.1]} 42. Ke2 {[%clk 0:00:54.3]} 42... Rb2+ {[%clk 0:02:13.8]} 43. Kf3
{[%clk 0:00:54.2]} 43... Rd2 {[%clk 0:02:07.5]} 44. h5 {[%clk 0:00:53.3]} 44...
Rh2 {[%clk 0:02:07.4]} 45. g4 {[%clk 0:00:49.1]} 45... Rh3+ {[%clk 0:02:07]} 46.
Kf4 {[%clk 0:00:47.2]} 46... Rh4 {[%clk 0:02:03.9]} 47. Kg5 {[%clk 0:00:36.9]}
47... Rxg4+ {[%clk 0:02:00.7]} 48. Kf6 {[%clk 0:00:37.9]} 48... Rh4 {[%clk
0:02:01.6]} 49. Kg6 {[%clk 0:00:35.6]} 49... Rg4+ {[%clk 0:01:57.3]} 50. Kf6
{[%clk 0:00:34.1]} 50... Rh4 {[%clk 0:01:57.6]} 51. Rh7 {[%clk 0:00:28.4]} 51...
Rh3 {[%clk 0:01:50.2]} 52. h6 {[%clk 0:00:25.6]} 52... Rxe3 {[%clk 0:01:50.9]}
53. Rh8 {[%clk 0:00:25.6]} 53... Rh3 {[%clk 0:01:47.9]} 54. h7 {[%clk
0:00:26.3]} 54... f4 {[%clk 0:01:46.2]} 55. Rd8+ {[%clk 0:00:24.1]} 55... Kc7
{[%clk 0:01:47.1]} 56. h8=Q {[%clk 0:00:25.2]} 1-0

[Event "GrandPrix_29.05"]
[Site "Chess.com"]
[Date "2020.05.29"]
[Round "1"]
[White "Winawer81"]
[Black "1stSecond"]
[Result "0-1"]
[WhiteElo "2135"]
[BlackElo "2580"]
[TimeControl "600+2"]
[EndTime "9:23:10 PDT"]
[Termination "1stSecond won by resignation"]

1. e4 {[%clk 0:10:01.3]} 1... c5 {[%clk 0:09:59.8]} 2. c3 {[%clk 0:09:38.6]}
2... Nf6 {[%clk 0:09:56.6]} 3. e5 {[%clk 0:09:38.7]} 3... Nd5 {[%clk 0:09:57.7]}
4. Nf3 {[%clk 0:09:39.2]} 4... d6 {[%clk 0:09:45.8]} 5. exd6 {[%clk 0:09:34.3]}
5... e6 {[%clk 0:09:39]} 6. Bc4 {[%clk 0:09:18.8]} 6... Bxd6 {[%clk 0:09:23.7]}
7. O-O {[%clk 0:08:59.6]} 7... O-O {[%clk 0:09:21.1]} 8. d4 {[%clk 0:08:59.3]}
8... cxd4 {[%clk 0:09:13.8]} 9. Bxd5 {[%clk 0:08:51.8]} 9... exd5 {[%clk
0:09:12.9]} 10. Nxd4 {[%clk 0:08:50.2]} 10... Nc6 {[%clk 0:09:02.5]} 11. Be3
{[%clk 0:08:38]} 11... Ne5 {[%clk 0:08:00.2]} 12. Bf4 {[%clk 0:08:15.1]} 12...
Re8 {[%clk 0:07:29]} 13. Nd2 {[%clk 0:08:01.1]} 13... a6 {[%clk 0:06:48.1]} 14.
Bg3 {[%clk 0:07:32.5]} 14... Nd3 {[%clk 0:06:30.3]} 15. Qc2 {[%clk 0:07:19]}
15... Nf4 {[%clk 0:06:22.3]} 16. Rfe1 {[%clk 0:07:03.2]} 16... Bg4 {[%clk
0:06:19.7]} 17. h3 {[%clk 0:05:33.8]} 17... Bh5 {[%clk 0:06:20.2]} 18. Qb3
{[%clk 0:05:07.3]} 18... Qd7 {[%clk 0:05:48.6]} 19. Nf1 {[%clk 0:04:32.3]} 19...
Re4 {[%clk 0:05:04.7]} 20. Bxf4 {[%clk 0:03:36.5]} 20... Bxf4 {[%clk 0:05:04.2]}
21. Ng3 {[%clk 0:03:33.5]} 21... Bxg3 {[%clk 0:05:00.1]} 22. fxg3 {[%clk
0:03:33.8]} 22... Rae8 {[%clk 0:05:01.5]} 23. Rf1 {[%clk 0:03:32.8]} 23... Bg6
{[%clk 0:04:53.5]} 24. Rf3 {[%clk 0:03:27.6]} 24... h5 {[%clk 0:04:44.8]} 25.
Raf1 {[%clk 0:03:19.3]} 25... R8e5 {[%clk 0:04:30.5]} 26. Kh2 {[%clk 0:03:01.7]}
26... Qc7 {[%clk 0:04:30.8]} 27. Kg1 {[%clk 0:02:59]} 27... Rg5 {[%clk
0:04:19.1]} 28. h4 {[%clk 0:02:44.4]} 28... Rxg3 {[%clk 0:04:14.8]} 29. Qxd5
{[%clk 0:02:31.1]} 29... Rxh4 {[%clk 0:04:02.7]} 30. Rxg3 {[%clk 0:01:58.1]}
30... Qxg3 {[%clk 0:04:03.1]} 31. Nf3 {[%clk 0:01:58.5]} 31... Rg4 {[%clk
0:03:57.8]} 32. Qd2 {[%clk 0:01:10.5]} 32... Be4 {[%clk 0:03:48.6]} 33. Qf2
{[%clk 0:00:54.8]} 33... Qd6 {[%clk 0:02:54.1]} 34. Ne1 {[%clk 0:00:41.5]} 34...
f5 {[%clk 0:02:43.4]} 35. Nf3 {[%clk 0:00:35.4]} 35... Qd5 {[%clk 0:02:31.6]}
36. Qe2 {[%clk 0:00:32.8]} 36... Kh7 {[%clk 0:02:25.5]} 37. Rf2 {[%clk 0:00:32]}
37... Qxa2 {[%clk 0:02:00]} 38. Nh2 {[%clk 0:00:29.6]} 38... Rg5 {[%clk
0:01:55.5]} 39. Nf3 {[%clk 0:00:26.3]} 39... Bxf3 {[%clk 0:01:56.5]} 40. Qxf3
{[%clk 0:00:25.1]} 40... Qb1+ {[%clk 0:01:54.7]} 41. Kh2 {[%clk 0:00:24]} 41...
Qe4 {[%clk 0:01:55.1]} 42. Qxe4 {[%clk 0:00:20.7]} 42... fxe4 {[%clk 0:01:57]}
43. Rf7 {[%clk 0:00:21.5]} 43... Rb5 {[%clk 0:01:33.4]} 44. b4 {[%clk
0:00:21.6]} 44... Re5 {[%clk 0:01:35]} 45. Kg1 {[%clk 0:00:20.3]} 45... b5
{[%clk 0:01:36.5]} 46. Ra7 {[%clk 0:00:19.8]} 46... Re6 {[%clk 0:01:37.3]} 47.
Kf2 {[%clk 0:00:20.8]} 47... e3+ {[%clk 0:01:34.4]} 48. Ke2 {[%clk 0:00:21.2]}
48... Kh6 {[%clk 0:01:36]} 49. Rd7 {[%clk 0:00:18.7]} 49... g5 {[%clk
0:01:33.6]} 50. Rd8 {[%clk 0:00:18.1]} 50... h4 {[%clk 0:01:33.1]} 51. Rh8+
{[%clk 0:00:17.6]} 51... Kg6 {[%clk 0:01:34.5]} 52. Rf8 {[%clk 0:00:17.8]} 52...
Kh5 {[%clk 0:01:35.3]} 0-1

[Event "GrandPrix_29.05"]
[Site "Chess.com"]
[Date "2020.05.29"]
[Round "1"]
[White "Logman74"]
[Black "crazyboy26"]
[Result "1-0"]
[WhiteElo "2221"]
[BlackElo "2145"]
[TimeControl "600+2"]
[EndTime "9:23:11 PDT"]
[Termination "Logman74 won on time"]

1. e4 {[%clk 0:10:00.5]} 1... c5 {[%clk 0:09:58.1]} 2. Nf3 {[%clk 0:10:00.5]}
2... Nc6 {[%clk 0:09:58.8]} 3. d4 {[%clk 0:10:00.7]} 3... cxd4 {[%clk
0:09:59.8]} 4. Nxd4 {[%clk 0:10:01.4]} 4... Qb6 {[%clk 0:10:01.2]} 5. Nb3 {[%clk
0:10:01.1]} 5... Nf6 {[%clk 0:10:00.5]} 6. Nc3 {[%clk 0:10:01.4]} 6... e6 {[%clk
0:10:01.1]} 7. Be3 {[%clk 0:10:01.4]} 7... Qc7 {[%clk 0:10:01.4]} 8. Bd3 {[%clk
0:10:02.1]} 8... a6 {[%clk 0:09:58.6]} 9. f4 {[%clk 0:09:57.1]} 9... d6 {[%clk
0:09:49.3]} 10. Qf3 {[%clk 0:09:53.2]} 10... b5 {[%clk 0:09:39]} 11. g4 {[%clk
0:09:50.7]} 11... h6 {[%clk 0:09:17.5]} 12. O-O-O {[%clk 0:09:40.8]} 12... Bb7
{[%clk 0:09:11.4]} 13. h4 {[%clk 0:09:31.3]} 13... h5 {[%clk 0:08:33.8]} 14. g5
{[%clk 0:09:18.3]} 14... Ng4 {[%clk 0:08:33.4]} 15. Kb1 {[%clk 0:09:12]} 15...
g6 {[%clk 0:08:05.1]} 16. Nd4 {[%clk 0:07:06.7]} 16... Nxe3 {[%clk 0:07:13.6]}
17. Qxe3 {[%clk 0:06:59.2]} 17... Qb6 {[%clk 0:07:14.3]} 18. Nce2 {[%clk
0:04:50.3]} 18... Bg7 {[%clk 0:06:47.9]} 19. Nf5 {[%clk 0:03:51.2]} 19... Qxe3
{[%clk 0:06:46.5]} 20. Nxe3 {[%clk 0:03:51.4]} 20... O-O-O {[%clk 0:05:59.1]}
21. Rhf1 {[%clk 0:03:49.3]} 21... Rhe8 {[%clk 0:05:50.8]} 22. c3 {[%clk
0:03:20.5]} 22... f5 {[%clk 0:02:59.8]} 23. exf5 {[%clk 0:02:05.5]} 23... exf5
{[%clk 0:02:58.1]} 24. Nd5 {[%clk 0:02:05]} 24... Ne7 {[%clk 0:02:44.8]} 25. Nf6
{[%clk 0:01:55]} 25... Bxf6 {[%clk 0:02:10.4]} 26. gxf6 {[%clk 0:01:56.9]} 26...
Nd5 {[%clk 0:02:11.1]} 27. Rg1 {[%clk 0:01:55.7]} 27... Ne3 {[%clk 0:02:03.9]}
28. Rc1 {[%clk 0:01:53]} 28... Ng4 {[%clk 0:01:59.8]} 29. c4 {[%clk 0:01:53.6]}
29... b4 {[%clk 0:01:54]} 30. Nd4 {[%clk 0:01:52]} 30... Re3 {[%clk 0:01:41.8]}
31. Kc2 {[%clk 0:01:46.9]} 31... Rf8 {[%clk 0:01:37.7]} 32. Rce1 {[%clk
0:01:42.4]} 32... Rxf6 {[%clk 0:01:28]} 33. Kd2 {[%clk 0:01:38.1]} 33... Rxe1
{[%clk 0:01:08]} 34. Rxe1 {[%clk 0:01:38.6]} 34... Kd7 {[%clk 0:01:05]} 35. Bc2
{[%clk 0:01:39.4]} 35... Nf2 {[%clk 0:00:39.3]} 36. Ba4+ {[%clk 0:01:37.7]}
36... Kc7 {[%clk 0:00:39.9]} 37. Re7+ {[%clk 0:01:37.4]} 37... Kb6 {[%clk
0:00:40.7]} 38. Be8 {[%clk 0:01:27.9]} 38... Ne4+ {[%clk 0:00:40.5]} 39. Ke3
{[%clk 0:01:26.9]} 39... d5 {[%clk 0:00:25.5]} 40. c5+ {[%clk 0:01:17]} 40...
Nxc5 {[%clk 0:00:25.7]} 41. Rf7 {[%clk 0:01:13.5]} 41... Rd6 {[%clk 0:00:15.1]}
42. Rg7 {[%clk 0:01:14]} 42... Na4 {[%clk 0:00:10.6]} 43. b3 {[%clk 0:01:09.6]}
43... Nc3 {[%clk 0:00:10.9]} 44. Rxg6 {[%clk 0:01:09.9]} 1-0

[Event "GrandPrix_29.05"]
[Site "Chess.com"]
[Date "2020.05.29"]
[Round "1"]
[White "PlayChessSimple"]
[Black "Kildepiotr"]
[Result "0-1"]
[WhiteElo "2279"]
[BlackElo "2315"]
[TimeControl "600+2"]
[EndTime "9:23:13 PDT"]
[Termination "Kildepiotr won on time"]

1. e4 {[%clk 0:09:58.5]} 1... g6 {[%clk 0:09:57.9]} 2. d4 {[%clk 0:09:57]} 2...
Bg7 {[%clk 0:09:58.2]} 3. Nf3 {[%clk 0:09:55]} 3... c6 {[%clk 0:09:56.5]} 4. h3
{[%clk 0:09:51.2]} 4... d6 {[%clk 0:09:56.5]} 5. Bc4 {[%clk 0:09:51.5]} 5... Nf6
{[%clk 0:09:55.7]} 6. Qe2 {[%clk 0:09:52]} 6... O-O {[%clk 0:09:54.5]} 7. e5
{[%clk 0:09:13.7]} 7... Nd5 {[%clk 0:09:54.8]} 8. O-O {[%clk 0:09:01.3]} 8...
Nb6 {[%clk 0:09:24]} 9. Bb3 {[%clk 0:08:54]} 9... d5 {[%clk 0:09:02.7]} 10. c3
{[%clk 0:08:24.9]} 10... f6 {[%clk 0:08:55.9]} 11. Nbd2 {[%clk 0:08:17.7]} 11...
N8d7 {[%clk 0:08:47.6]} 12. Re1 {[%clk 0:07:03.4]} 12... fxe5 {[%clk 0:08:45.6]}
13. Nxe5 {[%clk 0:07:01.8]} 13... Nxe5 {[%clk 0:08:46.2]} 14. dxe5 {[%clk
0:07:02.7]} 14... Bf5 {[%clk 0:08:17.2]} 15. Nf3 {[%clk 0:07:00.2]} 15... c5
{[%clk 0:08:10.1]} 16. e6 {[%clk 0:06:36.5]} 16... c4 {[%clk 0:08:07.8]} 17. Bc2
{[%clk 0:06:31.4]} 17... Bxc2 {[%clk 0:08:06]} 18. Qxc2 {[%clk 0:06:32]} 18...
Qd6 {[%clk 0:07:58.4]} 19. Be3 {[%clk 0:06:13]} 19... Qxe6 {[%clk 0:07:22.7]}
20. Bd4 {[%clk 0:05:25.1]} 20... Qd6 {[%clk 0:06:59.6]} 21. Qe2 {[%clk
0:04:22.1]} 21... Bxd4 {[%clk 0:06:48.1]} 22. Nxd4 {[%clk 0:04:22.2]} 22... Rf7
{[%clk 0:06:38.7]} 23. Ne6 {[%clk 0:04:08.8]} 23... Nd7 {[%clk 0:06:24.4]} 24.
Ng5 {[%clk 0:03:29.8]} 24... Rg7 {[%clk 0:06:04.7]} 25. Ne6 {[%clk 0:02:09.1]}
25... Rf7 {[%clk 0:06:03.9]} 26. Ng5 {[%clk 0:01:52.2]} 26... Rf5 {[%clk
0:04:36.3]} 27. Qxe7 {[%clk 0:01:47.7]} 27... Qxe7 {[%clk 0:04:36.9]} 28. Rxe7
{[%clk 0:01:48]} 28... Nc5 {[%clk 0:04:38.8]} 29. Ne6 {[%clk 0:01:07.5]} 29...
Re5 {[%clk 0:04:16.6]} 30. Rg7+ {[%clk 0:00:15]} 30... Kh8 {[%clk 0:04:16.4]}
31. Nxc5 {[%clk 0:00:13.3]} 31... Kxg7 {[%clk 0:04:16.4]} 32. Kf1 {[%clk
0:00:12.9]} 32... b6 {[%clk 0:04:08.4]} 33. Na6 {[%clk 0:00:13.8]} 33... Kf6
{[%clk 0:03:51.6]} 34. Nc7 {[%clk 0:00:11.2]} 34... Rc8 {[%clk 0:03:42.1]} 35.
Nb5 {[%clk 0:00:12.2]} 35... a6 {[%clk 0:03:42.6]} 36. Nd4 {[%clk 0:00:13.1]}
36... b5 {[%clk 0:03:38.1]} 37. a4 {[%clk 0:00:11.2]} 37... b4 {[%clk
0:03:22.5]} 38. cxb4 {[%clk 0:00:12.3]} 38... Re4 {[%clk 0:03:23]} 39. Ne2
{[%clk 0:00:09.1]} 39... Rb8 {[%clk 0:03:14.7]} 40. b5 {[%clk 0:00:08.3]} 40...
axb5 {[%clk 0:03:09.9]} 41. Nc3 {[%clk 0:00:09.4]} 41... Rd4 {[%clk 0:03:02.3]}
42. axb5 {[%clk 0:00:07.8]} 42... Rd2 {[%clk 0:03:02.8]} 43. Rb1 {[%clk
0:00:05.2]} 43... Re8 {[%clk 0:02:53.7]} 44. b6 {[%clk 0:00:04.6]} 44... Rb8
{[%clk 0:02:45.6]} 45. Ke1 {[%clk 0:00:05.3]} 45... Rd3 {[%clk 0:02:46.1]} 46.
Rd1 {[%clk 0:00:06]} 46... Rxd1+ {[%clk 0:02:45.2]} 47. Kxd1 {[%clk 0:00:06.4]}
47... Ke5 {[%clk 0:02:45.7]} 48. Na4 {[%clk 0:00:06.7]} 48... d4 {[%clk
0:02:41.9]} 49. Nc5 {[%clk 0:00:07]} 49... Kd5 {[%clk 0:02:23.1]} 50. Nd7 {[%clk
0:00:08.1]} 50... Rb7 {[%clk 0:02:22.3]} 51. Nf6+ {[%clk 0:00:09.1]} 51... Ke5
{[%clk 0:02:19.9]} 52. Ng4+ {[%clk 0:00:08.4]} 52... Ke6 {[%clk 0:02:20.2]} 53.
Kc2 {[%clk 0:00:08.3]} 53... Rxb6 {[%clk 0:02:20.8]} 54. f4 {[%clk 0:00:09.6]}
54... Rb5 {[%clk 0:02:12.8]} 55. Nf2 {[%clk 0:00:08.5]} 55... Kf5 {[%clk
0:02:06.5]} 56. g3 {[%clk 0:00:09.4]} 56... Rb3 {[%clk 0:02:07.2]} 57. Nh1
{[%clk 0:00:04.8]} 57... Rf3 {[%clk 0:02:07.8]} 0-1